[Event "44th Chess Olympiad Open 2022"]
[Site "Chennai"]
[Date "2022.08.09"]
[Round "11.65"]
[White "Chiwambo Stansford"]
[Black "Anhwere, Bernard"]
[Result "1-0"]
[ECO "E94"]
[WhiteElo "1913"]
[BlackElo "1890"]
[Annotator "TA"]
[PlyCount "183"]
[EventDate "2022.07.29"]
[EventType "team-tourn"]
[EventCountry "IND"]
[SourceTitle "playchess.com"]
[Source "ChessBase"]
[SourceQuality "1"]
[WhiteTeam "MAW"]
[BlackTeam "Ghana"]
[BlackTeamCountry "GHA"]
[TimeControl "40/5400+30:1800+30"]

{[%evp 16,183,42,0,27,30,49,27,39,5,11,18,19,0,0,0,28,16,38,20,56,33,72,29,58,58,62,53,82,21,65,52,118,89,91,70,93,85,121,129,195,187,180,183,220,221,233,229,199,183,169,170,163,150,185,197,214,205,229,220,221,178,256,236,273,245,294,272,376,322,386,254,270,239,332,338,324,297,327,297,813,812,783,560,1375,1327,1280,1259,1716,1585,1486,1397,29981,29982,29982,29983,29985,29986,29986,29987,29987,29988,29988,29979,29979,29980,29983,29980,29980,29981,29981,29982,29982,29983,29983,29984,29984,29985,29985,29982,29982,29983,29982,29983,29976,29971,29973,29976,29976,29974,29974,29974,29977,29975,29971,29964,29976,29971,29971,29972,29971,29972,29970,6091,29976,29977,29977,29978,29979,29980,29980,29980,29980,29981,29981,29982,29982,29983,29985,29978,29978,29979,29983,29984,29984,29985,29986,29987,29991,29992]} 1. c4 {[%emt 0:00:33]} Nf6 {[%emt 0:00:06]} 2. d4 {[%emt 0:00:21]} g6 {[%emt 0:03:17]} 3. Nc3 {[%emt 0:04:54]} Bg7 {[%emt 0:00:00]} 4. e4 {[%emt 0:00:07]} d6 {[%emt 0:00:00]} 5. Nf3 {[%emt 0:00:15]} O-O {[%emt 0:00:02]} 6. Be2 {[%emt 0:00:06]} e5 {[%emt 0:04:36]} 7. O-O {[%emt 0:00:15]} exd4 {[%emt 0:00:29]} 8. Nxd4 {[%emt 0:00:19]} Re8 {[%emt 0:00:38]} 9. Bf3 {[%emt 0:00:52]} c6 {[%emt 0:00:44] E94: King's Indian: Classical: 6 Be2 e5 7 0-0: Various Black 7th moves.} 10. Bf4 {[%emt 0:01:45] [#]} Bf8 $146 {[%emt 0:05:19]} ({Predecessor:} 10... Na6 11. Re1 Nc5 12. Nb3 Nxb3 13. axb3 Bf8 14. Qd4 Bg4 15. Bg5 Bxf3 16. Bxf6 c5 17. Bxd8 cxd4 {0-1 (41) Prudnikova,S (2203)-Borisova,E (2292) Satka 2020}) 11. Nde2 {[%emt 0:02:06]} Bg4 {[%emt 0:04:24] White has an edge.} 12. Ng3 {[%emt 0:00:38]} Bxf3 {[%emt 0:01:01]} 13. Qxf3 {[%emt 0:00:08]} Nbd7 {[%emt 0:00:26]} 14. Rfd1 {[%emt 0:03:16]} Ne5 {[%emt 0:01:29]} 15. Qe2 {[%emt 0:00:59]} Qc8 {[%emt 0:04:00]} 16. h3 {[%emt 0:00:51]} Qe6 {[%emt 0:03:11]} 17. b3 {[%emt 0:00:18]} Bg7 {[%emt 0:01:23]} 18. Rac1 {[%emt 0:00:31]} Rad8 {[%emt 0:02:03]} 19. Qe3 {[%emt 0:00:42]} b6 {[%emt 0:02:18]} 20. Bg5 {[%emt 0:00:16]} h6 {[%emt 0:00:58]} 21. Bf4 {[%emt 0:04:41]} ({Reject} 21. Bxh6 Nfg4 $1 22. hxg4 Nxg4 $15) 21... Kh7 {[%emt 0:02:18]} 22. Qe2 {[%emt 0:02:36]} ({White should try} 22. Nge2 $16) 22... Ng8 {[%emt 0:06:59][%cal Bf6g8,Bg8e7,Be7g6][%mdl 32]} 23. Qc2 {[%emt 0:01:00]} h5 {[%emt 0:02:27] Black is now going downhill.} (23... c5 $14) 24. Nge2 {[%emt 0:01:44]} Ne7 {[%emt 0:06:12]} 25. Bg5 {[%emt 0:05:03]} f6 {[%emt 0:02:54]} 26. Be3 {[%emt 0:00:41]} g5 {[%emt 0:01:08]} 27. Nd4 {[%emt 0:02:27]} Qc8 {[%emt 0:01:46]} (27... Qf7 $16) 28. f4 $18 {[%emt 0:00:54]} gxf4 {[%emt 0:04:08]} 29. Bxf4 {[%emt 0:00:09]} N7g6 {[%emt 0:03:55]} 30. Be3 {[%emt 0:01:36]} Ne7 {[%emt 0:06:50]} 31. Qe2 {[%emt 0:00:58]} Rh8 {[%emt 0:00:37]} 32. Rf1 {[%emt 0:01:58]} Kg8 {[%emt 0:02:58]} 33. Nf5 {[%emt 0:00:31]} Nxf5 {[%emt 0:10:02]} 34. Rxf5 {[%emt 0:00:08]} Kf7 {[%emt 0:00:31]} 35. Rxh5 {[%emt 0:01:33]} Rdg8 {[%emt 0:00:26]} 36. Rf1 {[%emt 0:01:03]} Ke7 {[%emt 0:00:16]} 37. Rxh8 {[%emt 0:01:22]} Bxh8 {[%emt 0:02:14]} 38. Rf5 {[%emt 0:01:11]} Rg6 {[%emt 0:00:55]} (38... Bg7 {is a better defense.} 39. Qd2 Qe8) 39. Bf4 {[%emt 0:02:22]} Qg8 {[%emt 0:00:36]} 40. Bxe5 {[%emt 0:03:34]} fxe5 {[%emt 0:00:15]} 41. g4 {[%emt 0:31:17]} Qh7 {[%emt 0:31:32]} 42. Qf3 {[%emt 0:02:01]} Bf6 {[%emt 0:00:42]} 43. Ne2 {[%emt 0:02:19]} Qh6 {[%emt 0:01:43]} 44. a4 {[%emt 0:01:39]} Qd2 {[%emt 0:09:23]} 45. Ng3 {[%emt 0:01:35]} Qe1+ {[%emt 0:01:03]} 46. Kg2 {[%emt 0:00:46][%cal Oh3h4] And now h4! would win. The board is on fire.} ({Not} 46. Nf1 Qc1 47. h4 Qh6 $18) 46... Qd2+ {[%emt 0:00:52]} (46... Bh4 {is a self mate.} 47. Rf7+ Kd8 48. Rf8+ Kd7 49. Qf7+ Be7 50. Qe8+ Ke6 51. Qc8#) 47. Qf2 {[%emt 0:01:10]} Qd3 {[%emt 0:04:01]} (47... Qxf2+ 48. Rxf2 Bg5 49. Nf5+ Ke6) 48. Rf3 {[%emt 0:01:24]} Qb1 {[%emt 0:00:00]} 49. a5 {[%emt 0:00:00]} c5 {[%emt 0:00:00]} 50. axb6 {[%emt 0:00:00]} axb6 {[%emt 0:00:00]} 51. Qd2 {[%emt 0:00:00]} Bg5 {[%emt 0:00:00]} 52. Qd5 {[%emt 0:00:00] White threatens Qf7+ and mate.} Bf4 {[%emt 0:00:00]} 53. Nf5+ {[%emt 0:00:00]} Kf8 {[%emt 0:00:00]} 54. Qa8+ {[%emt 0:00:00]} Kf7 {[%emt 0:00:00]} 55. Qb7+ {[%emt 0:00:00]} Kf8 {[%emt 0:00:00]} 56. Qe7+ {[%emt 0:00:00]} Kg8 {[%emt 0:00:00]} 57. Qe8+ {[%emt 0:00:00]} Kh7 {[%emt 0:00:00]} 58. Qf7+ {[%emt 0:00:00]} Kh8 {[%emt 0:00:00]} 59. Rxf4 {[%emt 0:03:38]} exf4 {[%emt 0:00:00]} 60. Qxg6 {[%emt 0:02:29][%csl Gf5][%cal Rg6g7]} f3+ {[%emt 0:00:00]} 61. Kxf3 {[%emt 0:00:31][%csl Gf5][%cal Rg6g7]} Qf1+ {[%emt 0:00:00]} 62. Kg3 {[%emt 0:03:24][%csl Gf5][%cal Rg6g7]} Qe1+ {[%emt 0:00:00] [#]} 63. Kf4 $1 {[%emt 0:00:59][%csl Gf5][%cal Rg6g7]} Qd2+ {[%emt 0:00:00] [#]} 64. Ne3 $1 {[%emt 0:01:15]} Qf2+ {[%emt 0:00:00]} 65. Kg5 {[%emt 0:00:22]} Qxe3+ {[%emt 0:00:00] KQ-KQ} 66. Kf6 {[%emt 0:00:45][%csl Gf6][%cal Rg6g7]} Qf4+ {[%emt 0:00:00]} 67. Qf5 {[%emt 0:01:10]} Qh6+ {[%emt 0:00:00]} 68. Ke7 {[%emt 0:00:49]} Qg7+ {[%emt 0:00:00]} 69. Kxd6 {[%emt 0:00:22]} Qh6+ {[%emt 0:00:00]} 70. Kc7 {[%emt 0:00:25]} Qg7+ {[%emt 0:00:00]} 71. Kxb6 {[%emt 0:00:22]} Qc3 {[%emt 0:00:00]} 72. Kxc5 {[%emt 0:00:24]} Qa5+ {[%emt 0:00:09]} 73. Kd6 {[%emt 0:02:49]} Qd8+ {[%emt 0:00:35]} 74. Ke5 {[%emt 0:00:44]} Qc7+ {[%emt 0:00:47]} 75. Kd4 {[%emt 0:00:06]} Qb6+ {[%emt 0:00:43]} 76. Kc3 {[%emt 0:01:10]} Qe3+ {[%emt 0:00:16]} 77. Kb4 {[%emt 0:00:06]} Qb6+ {[%emt 0:00:27]} 78. Qb5 {[%emt 0:00:10]} Qd6+ {[%emt 0:00:17]} 79. Qc5 {[%emt 0:00:31]} (79. Ka4 $142 Qe7 80. Qd5 Qa7+ 81. Kb4 Qb6+ 82. Kc3 Qe3+ 83. Qd3 Qe1+ 84. Kd4) 79... Qd2+ {[%emt 0:00:30]} 80. Kb5 {[%emt 0:00:14] White mates.} Qd7+ {[%emt 0:00:15]} 81. Qc6 {[%emt 0:00:12]} Qd3 {[%emt 0:00:21]} 82. b4 {[%emt 0:01:06]} Qd8 {[%emt 0:00:24]} 83. Qh6+ {[%emt 0:00:33]} Kg8 {[%emt 0:00:29]} 84. Qg6+ {[%emt 0:00:10]} Kh8 {[%emt 0:00:04]} 85. Qh5+ {[%emt 0:00:28]} Kg7 {[%emt 0:00:04]} 86. Qe5+ {[%emt 0:00:36]} Kh7 {[%emt 0:00:11]} 87. Qf5+ {[%emt 0:00:18]} Kg7 {[%emt 0:00:08]} 88. c5 {[%emt 0:00:30][%cal Bc4c5,Bc5c6][%mdl 32]} Qe8+ {[%emt 0:00:22]} 89. c6 {[%emt 0:00:19]} Qb8+ {[%emt 0:00:11]} 90. Kc4 {[%emt 0:00:22]} Qb6 {[%emt 0:01:05]} 91. Qd7+ {[%emt 0:00:21]} Kh8 {[%emt 0:00:09]} 92. Qd4+ {[%emt 0:00:13] Weighted Error Value: White=0.19 (very precise) /Black=0.45} 1-0

[Event "44th Chess Olympiad Open 2022"]
[Site "Chennai"]
[Date "2022.08.09"]
[Round "11.65"]
[White "Fomevor, Cephas Clinton"]
[Black "Nyambalo, Joseph Xavier"]
[Result "0-1"]
[ECO "E68"]
[WhiteElo "1830"]
[BlackElo "1981"]
[Annotator "TA"]
[PlyCount "125"]
[EventDate "2022.07.29"]
[EventType "team-tourn"]
[EventCountry "IND"]
[SourceTitle "playchess.com"]
[Source "ChessBase"]
[SourceQuality "1"]
[WhiteTeam "Ghana"]
[BlackTeam "MAW"]
[WhiteTeamCountry "GHA"]
[TimeControl "40/5400+30:1800+30"]

{[%evp 17,125,44,43,20,48,47,30,29,29,20,17,-9,-8,-15,-9,-17,-14,-18,-12,-33,-30,-60,-40,-54,-35,-57,-58,-55,-50,-113,-115,-104,-125,-132,-28,-28,-36,-39,-33,-35,-29,-37,-16,-41,-39,-71,-76,-65,-77,-109,-72,-151,-167,-125,-54,-164,-52,-169,-59,-95,-34,-43,0,-63,-57,-65,-65,-65,-65,-65,-55,-72,-13,-67,-54,-50,-43,-42,-38,-76,-72,-102,-32,-77,-25,-112,-55,-132,-131,-124,-97,-233,-152,-140,-37,-37,-37,-197,-205,-181,-183,-195,-179,-190,-210,-200,-82,-29990,-29991,-29991]} 1. c4 {[%emt 0:00:03]} Nf6 {[%emt 0:00:07]} 2. Nf3 {[%emt 0:00:06]} g6 {[%emt 0:00:08]} 3. g3 {[%emt 0:00:05]} b6 {[%emt 0:00:09]} 4. Bg2 {[%emt 0:00:01]} Bb7 {[%emt 0:00:07]} 5. O-O {[%emt 0:00:06]} Bg7 {[%emt 0:00:06]} 6. Nc3 {[%emt 0:00:35]} O-O {[%emt 0:00:11]} 7. Re1 {[%emt 0:04:49]} d6 {[%emt 0:00:43]} 8. e4 {[%emt 0:02:33]} e5 {[%emt 0:05:00]} 9. d4 {[%emt 0:00:45]} Nbd7 {[%emt 0:00:57]} 10. dxe5 {[%emt 0:03:48] E68: King's Indian: Fianchetto: 6...Nbd7 7 0-0 e5 8 e4.} Nxe5 {[%emt 0:00:23]} 11. Nxe5 {[%emt 0:00:54]} dxe5 {[%emt 0:00:02]} 12. Qc2 {[%emt 0:01:02] White has an edge.} c6 {[%emt 0:03:05] [#]} 13. b3 $146 {[%emt 0:03:07]} ({Predecessor:} 13. Bg5 h6 14. Rad1 Qe7 15. Be3 Rad8 16. h3 Rxd1 17. Rxd1 Rd8 18. Re1 Qb4 19. Bf1 {1-0 (41) Abtahi,M-Scheidt,E Gladenbach 1999}) 13... Qe7 {[%emt 0:01:58]} 14. Bb2 {[%emt 0:02:14]} Rfd8 {[%emt 0:00:25]} 15. Rad1 {[%emt 0:00:49]} Ne8 {[%emt 0:00:22]} 16. Qc1 {[%emt 0:03:44]} Nc7 {[%emt 0:01:33]} 17. Ba3 {[%emt 0:02:29]} Qf6 {[%emt 0:00:46]} 18. Qe3 {[%emt 0:10:16]} Ne6 {[%emt 0:06:43]} 19. Rxd8+ {[%emt 0:08:41]} Rxd8 {[%emt 0:00:09]} 20. Rd1 {[%emt 0:02:16]} Rd4 {[%emt 0:03:20]} 21. Rd3 {[%emt 0:03:40]} Qd8 {[%emt 0:08:30]} 22. Bf1 {[%emt 0:00:34]} Bf8 {[%emt 0:02:35]} 23. Bb2 {[%emt 0:03:33]} (23. Bxf8 $15 Kxf8 24. Nd1) 23... Nc5 $17 {[%emt 0:00:52]} 24. Rxd4 {[%emt 0:05:50]} exd4 {[%emt 0:00:14]} ({Don't play} 24... Qxd4 $6 25. Qe2 Qd8 26. h4 $15) 25. Qd2 {[%emt 0:01:12]} Ne6 {[%emt 0:03:15]} (25... Bg7 $1 $17 {Strongly threatening ...Qa8.} 26. f3 Qf6) 26. Ne2 {[%emt 0:02:30]} c5 {[%emt 0:00:18]} 27. Bg2 {[%emt 0:01:48]} Bg7 {[%emt 0:02:44]} 28. Bc1 {[%emt 0:02:07]} Qa8 {[%emt 0:02:44]} 29. Qd3 {[%emt 0:02:36]} a5 {[%emt 0:00:23]} 30. f3 {[%emt 0:03:13]} a4 {[%emt 0:00:28]} 31. Bh3 {[%emt 0:02:01]} axb3 {[%emt 0:01:08]} 32. axb3 {[%emt 0:00:51]} Nd8 {[%emt 0:00:30]} 33. Bd2 {[%emt 0:02:56]} Nc6 {[%emt 0:01:10] ...Ne5 is the strong threat.} 34. Bg2 {[%emt 0:14:51]} (34. Qb1 $142) 34... Qa1+ {[%emt 0:01:18]} 35. Nc1 {[%emt 0:01:56] [#]} Ne5 {[%emt 0:04:06]} (35... Nb4 $1 $17 {[%cal Rb4d3]} 36. Qf1 Qb1) 36. Qe2 {[%emt 0:02:53]} ({White has to play} 36. Qf1 $1 $15) 36... h5 {[%emt 0:03:56]} ({Black should play} 36... b5 $19 37. cxb5 c4 38. bxc4 d3) 37. h3 {[%emt 0:00:28]} (37. f4 $15 Ng4 38. e5 Bxg2 39. Kxg2) 37... Nc6 {[%emt 0:07:16]} (37... b5 $19 38. cxb5 c4 39. bxc4 d3) 38. f4 {[%emt 0:04:31]} Na5 {[%emt 0:00:46]} (38... d3 $17 39. Qxd3 Bb2) 39. Qd3 {[%emt 0:03:24]} Nc6 {[%emt 0:02:04][%cal Ba5c6,Bc6b4,Bb4a2][%mdl 32]} 40. Kh2 {[%emt 0:00:35]} (40. Qe2 $11) 40... Nb4 {[%emt 0:00:09]} 41. Qe2 {[%emt 0:04:38]} Na2 {[%emt 0:02:02] Black is much more active.} 42. Nxa2 {[%emt 0:01:13]} Qxa2 {[%emt 0:00:01]} 43. Qd3 {[%emt 0:01:08]} Qa8 {[%emt 0:00:28][%cal Of7f5]} 44. Qe2 {[%emt 0:01:38]} Kf8 {[%emt 0:02:07]} (44... Bc6 $17) 45. Be1 {[%emt 0:06:38]} (45. e5 $11) 45... Qa3 {[%emt 0:01:39]} 46. Qd3 {[%emt 0:01:22]} Qb2 {[%emt 0:00:22][%cal Of7f5]} 47. Bd2 {[%emt 0:01:15]} Bc8 {[%emt 0:00:44]} 48. Kg1 {[%emt 0:02:42]} Kg8 {[%emt 0:00:55]} 49. Kh2 {[%emt 0:00:54]} Bf8 {[%emt 0:01:17]} (49... Bh6 $17) 50. Kg1 {[%emt 0:02:44]} Bd7 {[%emt 0:00:13]} (50... Bh6 $17) 51. Kh2 {[%emt 0:01:31]} (51. f5 $11) 51... b5 {[%emt 0:00:59]} (51... Bd6 $17) 52. Kg1 {[%emt 0:01:24]} ({Better is} 52. f5 $15) 52... bxc4 {[%emt 0:03:39]} 53. bxc4 {[%emt 0:00:02]} Be6 {[%emt 0:00:53][%cal Oe6c4] White must now prevent ...Bxc4!} 54. Kh2 {[%emt 0:01:07]} (54. h4 $17) 54... Qa2 {[%emt 0:01:54]} 55. Bf1 {[%emt 0:01:17]} Bxc4 {[%emt 0:00:06]} 56. Qxc4 $15 {[%emt 0:00:03]} Qxd2+ $17 {[%emt 0:00:05][%mdl 4096] Endgame KQB-KQB} 57. Be2 $2 {[%emt 0:00:47] [#]} (57. Qe2 $15 Qc1 58. Qc4) 57... h4 $1 $19 {[%emt 0:02:03]} 58. Qd3 {[%emt 0:01:50]} hxg3+ {[%emt 0:00:07]} 59. Kxg3 {[%emt 0:00:12]} Qc1 {[%emt 0:00:43] Hoping for ...Bh6.} 60. f5 {[%emt 0:02:26]} Qg1+ {[%emt 0:01:42]} 61. Kf3 {[%emt 0:00:39]} Bd6 {[%emt 0:00:25]} (61... Qh1+ $19 {is more deadly.} 62. Kf2 Bh6) 62. Bf1 $2 {[%emt 0:00:50][%mdl 8192]} (62. e5 $17) 62... c4 {[%emt 0:01:01]} 63. Qd2 {[%emt 0:05:10] Weighted Error Value: White=0.42/Black=0.25 (precise)} 0-1

[Event "44th Chess Olympiad Open 2022"]
[Site "Chennai"]
[Date "2022.08.09"]
[Round "11.66"]
[White "Jean Louis, Marckens"]
[Black "Khan, Taffin"]
[Result "1/2-1/2"]
[ECO "B21"]
[WhiteElo "2050"]
[BlackElo "2019"]
[Annotator "NA RC"]
[PlyCount "80"]
[EventDate "2022.07.29"]
[EventType "team-tourn"]
[EventCountry "IND"]
[SourceTitle "playchess.com"]
[Source "ChessBase"]
[SourceQuality "1"]
[WhiteTeam "Haiti"]
[BlackTeam "Guyana"]
[WhiteTeamCountry "HAI"]
[BlackTeamCountry "GUY"]
[TimeControl "40/5400+30:1800+30"]

1. e4 {[%emt 0:00:43]} c5 {[%emt 0:00:05]} 2. Be2 {[%emt 0:00:19]} Nc6 {[%emt 0:00:25]} 3. f4 {[%emt 0:00:15]} e6 {[%emt 0:01:13]} 4. Nf3 {[%emt 0:00:15]} d5 {[%emt 0:00:29]} 5. d3 {[%emt 0:02:43]} Nf6 {[%emt 0:00:33]} 6. e5 {[%emt 0:02:55]} Ng8 {[%emt 0:03:12]} 7. c3 {[%emt 0:00:31]} Bd7 {[%emt 0:00:57]} 8. O-O {[%emt 0:01:11]} Nge7 {[%emt 0:03:33]} 9. Qe1 {[%emt 0:01:37]} h5 {[%emt 0:00:32]} 10. Nh4 {[%emt 0:01:02]} g6 {[%emt 0:00:40]} 11. Nd2 {[%emt 0:02:48]} Nf5 {[%emt 0:11:16]} 12. Nxf5 {[%emt 0:01:38]} exf5 {[%emt 0:00:41]} 13. h4 {[%emt 0:00:16]} Be7 {[%emt 0:00:40]} 14. Nf3 {[%emt 0:00:32]} Be6 {[%emt 0:00:14]} 15. Be3 {[%emt 0:05:05]} d4 {[%emt 0:04:23]} 16. Bf2 {[%emt 0:00:46]} Qb6 {[%emt 0:00:13]} 17. Qd2 {[%emt 0:00:52]} a5 {[%emt 0:03:13]} 18. Rfb1 {[%emt 0:04:33]} O-O {[%emt 0:06:00]} 19. Ng5 {[%emt 0:01:18]} Bxg5 {[%emt 0:04:40]} 20. hxg5 {[%emt 0:00:10]} a4 {[%emt 0:00:34]} 21. Kh2 {[%emt 0:01:47]} Kg7 {[%emt 0:00:11]} 22. Bf3 {[%emt 0:01:17]} Rfd8 {[%emt 0:01:39]} 23. Bxc6 {[%emt 0:03:25]} Qxc6 {[%emt 0:00:51]} 24. c4 {[%emt 0:00:42]} b5 {[%emt 0:01:38]} 25. b3 {[%emt 0:00:25]} b4 {[%emt 0:01:10]} 26. a3 {[%emt 0:02:23]} bxa3 {[%emt 0:05:42]} 27. Rxa3 {[%emt 0:00:40]} axb3 {[%emt 0:00:11]} 28. Raxb3 {[%emt 0:01:06]} Ra6 {[%emt 0:02:41]} 29. R1b2 {[%emt 0:10:44]} Rda8 {[%emt 0:00:40]} 30. Be1 {[%emt 0:02:00]} Bc8 {[%emt 0:02:55]} 31. Qe2 {[%emt 0:01:32]} Be6 {[%emt 0:00:35]} 32. Kg3 {[%emt 0:01:13]} Rc8 {[%emt 0:03:38]} 33. Qf3 {[%emt 0:01:39]} Bd7 {[%emt 0:15:54]} 34. Qd5 {[%emt 0:07:33]} Be6 {[%emt 0:02:54]} 35. Qf3 {[%emt 0:04:22]} Bd7 {[%emt 0:00:28]} 36. Kf2 {[%emt 0:00:51]} Qxf3+ {[%emt 0:03:22]} 37. Kxf3 {[%emt 0:00:31]} Kf8 {[%emt 0:03:44]} 38. Ke2 {[%emt 0:02:28]} Rca8 {[%emt 0:00:21]} 39. g3 {[%emt 0:01:07]} Ke7 {[%emt 0:01:13]} 40. Rb7 {[%emt 0:00:36]} Kd8 {[%emt 0:00:25]} 1/2-1/2

[Event "44th Chess Olympiad Open 2022"]
[Site "Chennai"]
[Date "2022.08.09"]
[Round "11.66"]
[White "Germinal, Kemly"]
[Black "Nathoo, Loris"]
[Result "1-0"]
[ECO "B23"]
[WhiteElo "1997"]
[BlackElo "1695"]
[Annotator "TA"]
[PlyCount "64"]
[EventDate "2022.07.29"]
[EventType "team-tourn"]
[EventCountry "IND"]
[SourceTitle "playchess.com"]
[Source "ChessBase"]
[SourceQuality "1"]
[WhiteTeam "Haiti"]
[BlackTeam "Guyana"]
[WhiteTeamCountry "HAI"]
[BlackTeamCountry "GUY"]
[TimeControl "40/5400+30:1800+30"]

{[%evp 9,64,14,22,13,36,22,29,29,36,0,16,10,2,0,54,68,168,0,77,58,76,43,58,67,78,73,53,41,79,0,0,0,45,69,359,0,0,0,0,0,0,0,756,779,29975,29976,29976,351,29977,29978,29978,29979,29985,29986,29986,29987,29997]} 1. e4 {[%emt 0:00:07]} c5 {[%emt 0:00:04]} 2. Nc3 {[%emt 0:00:12]} Nc6 {[%emt 0:01:33]} 3. Bb5 {[%emt 0:00:31]} a6 {[%emt 0:02:09]} 4. Bxc6 {[%emt 0:00:08]} dxc6 {[%emt 0:05:34]} 5. d3 {[%emt 0:00:36]} e5 {[%emt 0:05:44]} 6. f4 {[%emt 0:03:55] B23: Closed Sicilian: Lines without g3.} Bd6 {[%emt 0:08:37]} 7. fxe5 {[%emt 0:02:14]} Bxe5 {[%emt 0:00:17]} 8. Nf3 {[%emt 0:00:28] Prevents Qh4+. White has an edge.} Bg4 {[%emt 0:04:09][%cal Oc5c4] [#]} 9. O-O $146 {[%emt 0:00:49]} ({Predecessor:} 9. Be3 Bd4 10. Qd2 Bxf3 11. gxf3 Ne7 12. O-O-O Qa5 13. Kb1 O-O-O 14. Bg5 f6 15. Nd5 Qxd2 16. Nxe7+ {0-1 (43) Boix Moreno,D (2305)-Pinero Fernandez,X (2269) Barcelona 2022}) 9... Qe7 {[%emt 0:16:10]} 10. Qe1 {[%emt 0:00:31]} Bxf3 {[%emt 0:01:21]} 11. Rxf3 {[%emt 0:00:10]} O-O-O {[%emt 0:07:55]} ({Black should try} 11... Nf6 $11) 12. Na4 $14 {[%emt 0:03:33]} b5 {[%emt 0:21:45]} (12... Nf6 $14) 13. Nc3 $2 {[%emt 0:03:29]} ({Only move:} 13. Nb6+ $18 Kb7 {[#]} 14. a4 $1) 13... f6 {[%emt 0:00:00]} (13... Nf6 $11 {remains equal.}) 14. Ne2 $16 {[%emt 0:00:14]} g5 {[%emt 0:00:00]} 15. Qa5 {[%emt 0:00:43]} Kb7 {[%emt 0:00:00]} 16. a4 {[%emt 0:06:57] And now axb5 would win.} Bc7 {[%emt 0:02:25]} 17. Qc3 {[%emt 0:01:46] aiming for axb5.} Be5 {[%emt 0:01:21]} 18. Qb3 {[%emt 0:02:15][%cal Oc1g5]} Nh6 $1 {[%emt 0:02:57]} 19. axb5 {[%emt 0:00:48]} ({Better is} 19. Kh1 $16) 19... axb5 $11 {[%emt 0:02:07]} 20. Rf1 {[%emt 0:09:17]} Ng4 {[%emt 0:03:22]} 21. h3 $36 {[%emt 0:03:21][%mdl 2048] Black is under pressure.} h5 {[%emt 0:00:37][%mdl 8192]} ({Black should play} 21... c4 $1 $14 22. Qa3 (22. Qa2 $2 Ra8 $19) 22... Qxa3 23. Rxa3 Bh2+ 24. Kh1 Bd6) 22. Bxg5 $2 {[%emt 0:06:57]} (22. hxg4 $18 hxg4 23. Be3) 22... c4 $1 {[%emt 0:04:12]} 23. dxc4 {[%emt 0:02:09][%cal Bd3c4,Bc4b5,Bb5c6][%mdl 32]} fxg5 {[%emt 0:00:11]} 24. cxb5 {[%emt 0:00:18]} Qc5+ {[%emt 0:00:08]} 25. Kh1 {[%emt 0:00:51] Threatens to win with Rf7+. Dancing on a razor blade.} Nf2+ $2 {[%emt 0:02:44][%mdl 8192] [#]} (25... cxb5 $11 26. Nc3 Rhf8 27. hxg4 hxg4 28. Rxf8 (28. Qxb5+ Qxb5 29. Nxb5 Rh8+ 30. Kg1 Bh2+ 31. Kf2 Rd2+ 32. Ke3 Rhd8 $11) 28... Rxf8 29. Qxb5+ Qxb5 30. Nxb5 Kc6) 26. Rxf2 $1 $18 {[%emt 0:00:44][%mdl 576] Rf7+ would kill now. Deflection} Qxf2 {[%emt 0:00:05]} (26... Rhf8 27. Rxf8) 27. bxc6+ {[%emt 0:00:08]} Kc7 {[%emt 0:04:12]} 28. Qb7+ {[%emt 0:00:13]} Kd6 {[%emt 0:00:25]} 29. c7 {[%emt 0:01:48] White mates.} Rc8 {[%emt 0:02:46]} 30. Qd5+ {[%emt 0:00:44]} Kxc7 {[%emt 0:00:25]} 31. Qxe5+ {[%emt 0:00:06]} Kb7 {[%emt 0:00:36]} 32. Nd4 {[%emt 0:01:08]} Rhf8 {[%emt 0:00:00] Weighted Error Value: White=0.37/Black=0.52} 1-0